Cogmind - Beta 10.2 @@@ ROGUE MODE // 2021.08.30 @ 10:58:54 Player: BoomBlip Result: Destroyed by S-10 Pest with Light Assault Rifle Performance ------------- Evolutions (1) 500 Regions Visited (3) 600 Robots Destroyed (11) 55 Value Destroyed (221) 221 Prototype IDs (0) 0 Alien Tech Used (0) 0 Bonus (0) 0 TOTAL SCORE: 1376 Bonus ------- None Cogmind --------- Core Integrity 0/400 Matter 300/300 Energy 98/100 System Corruption 0% Temperature Cool (6) Movement Core (50) Location -9/Mines Parts ------- > --- POWER (1) -------- (None) > --- PROPULSION (3) --- (None) > --- UTILITY (3) ------ (None) > --- WEAPON (2) ------- (None) > --- INVENTORY (4) ---- Improved Light Cannon Peak State ------------ > --- POWER ------------ Ion Engine > --- PROPULSION ------- Aluminum Leg Aluminum Leg Aluminum Leg > --- UTILITY ---------- Small Storage Unit Large Matter Pod Light Armor Plating > --- WEAPON ----------- EM Shotgun Assault Rifle > --- INVENTORY -------- Light Ion Engine EM Shotgun Improved Light Cannon Improved Light Cannon [Rating: 10] Favorites ----------- Power Ion Engine Engine Ion Engine Propulsion Aluminum Leg Leg Aluminum Leg Utility Small Storage Unit Storage Small Storage Unit Protection Light Armor Plating Weapon Assault Rifle Energy Gun EM Pulse Gun Ballistic Gun Assault Rifle Ballistic Cannon Improved Light Cannon Build | -11 -10 -9 -9 ------- Run | Scr Mat Mat Min Slots Evolved 2 | . . 2 . Power . | . . . . Propulsion 1 | . . 1 . Utility 1 | . . 1 . Weapon . | . . . . Parts Attached 15 | 6 4 5 . Power 2 | 1 . 1 . Engine 2 | 1 . 1 . Core . | . . . . Reactor . | . . . . Propulsion 4 | 2 1 1 . Treads . | . . . . Leg 4 | 2 1 1 . Wheel . | . . . . Hover . | . . . . Flight . | . . . . Utility 3 | 1 1 1 . Device . | . . . . Storage 2 | 1 1 . . Processor . | . . . . Hackware . | . . . . Protection 1 | . . 1 . Artifact . | . . . . Weapon 6 | 2 2 2 . Energy Gun 4 | 1 2 1 . Energy Cannon . | . . . . Ballistic Gun 1 | 1 . . . Ballistic Cannon 1 | . . 1 . Launcher . | . . . . Special Weapon . | . . . . Impact Weapon . | . . . . Slashing Weapon . | . . . . Piercing Weapon . | . . . . Special Melee Weapon . | . . . . Unidentified Prototypes . | . . . . Parts Lost 8 | . 1 7 . Power 1 | . . 1 . Propulsion 2 | . . 2 . Utility 1 | . . 1 . Weapon 4 | . 1 3 . Highest Loss Streak 7 | . 1 7 . Average Slot Usage (%) 76 | . 97 79 . Engine 10 | . 14 9 . Leg 22 | . 28 24 . Storage 19 | . 26 18 . Protection 2 | . . 8 . Energy Gun 9 | . 13 9 . Ballistic Gun 10 | . 14 8 . Naked Turns 90 | . . 16 74 Heaviest Build 20 | 13 17 20 . Greatest Support 30 | 20 20 30 3 Greatest Overweight (x) . | . . . . Average Overweight (x) . | . . . . Largest Inventory Capacity 6 | 6 6 6 4 Average Capacity 5 | 5 6 5 4 Most Carried 6 | 2 6 5 1 Average Carried 2 | 1 3 3 1 Final Capacity 6 | 6 6 4 4 Final Carried 6 | 2 6 1 1 Class Distribution -------------------- 100% | Mutant Dominant Class ---------------- Mutant | -10/Materials Mutant | -9/Materials Mutant | -9/Mines Resources | -11 -10 -9 -9 ----------- Run | Scr Mat Mat Min Matter Collected 447 | 272 175 . . Remotely . | . . . . Salvage Created 367 | 63 191 113 . Parts 20 | 2 7 11 . Haulers Intercepted . | . . . . Recyclers Shooed . | . . . . Parts Field Recycled . | . . . . Retrieved Matter . | . . . . Parts Self-Destructed . | . . . . Prevented . | . . . . Kills | -11 -10 -9 -9 ------- Run | Scr Mat Mat Min Combat Hostiles Destroyed 8 | . 4 4 . Melee 1 | . . 1 . Guns 4 | . 2 2 . AOE 3 | . 2 1 . Classes Destroyed 5 | 1 1 3 . Worker 1 | . . 1 . Builder 1 | . . 1 . Recycler 1 | 1 . . . Swarmer 4 | . . 4 . Grunt 4 | . 4 . . Best Kill Streak 6 | 1 2 6 . Combat Bots Only 4 | . 2 4 . Max Kills in Single Turn 1 | 1 1 1 . Gunslinging . | . . . . Exploded 1 | . 1 1 . Melee 1 | . . 1 . Uniques/NPCs Destroyed . | . . . . Combat | -11 -10 -9 -9 -------- Run | Scr Mat Mat Min Damage Taken 1220 | . 117 1001 102 Core 415 | . 13 300 102 Absorbed by Shields . | . . . . Core Remaining (%) 97 | 100 94 . . Volleys Fired 25 | 4 8 13 . Largest 2 | 2 2 2 . Hottest 84 | 60 60 84 . Shots Fired 47 | 8 13 26 . Gun 44 | 8 13 23 . Cannon 3 | . . 3 . Launcher . | . . . . Special . | . . . . Kinetic 25 | 4 8 13 . Thermal . | . . . . Explosive . | . . . . Electromagnetic 22 | 4 5 13 . Robot Hit Streak 10 | 3 8 10 . Robot Miss Streak 4 | 1 1 4 . Penetration Max . | . . . . Secondary Targets 2 | . . 2 . Max Gunslinging Chain 1 | . . 1 . Shots Hit Robots 32 | 6 10 16 . Core Hits 19 | 2 6 10 1 Critical Hits . | . . . . Critical Kills . | . . . . Critical Parts Destroyed . | . . . . Melee Attacks . | . . . . Impact . | . . . . Slashing . | . . . . Piercing . | . . . . Sneak Attacks . | . . . . Combat Hostiles . | . . . . Follow-up Attacks . | . . . . Damage Inflicted 530 | 79 246 194 11 Guns 297 | 79 104 114 . Cannons 38 | . . 38 . Explosions 168 | . 142 26 . Melee . | . . . . Ramming 27 | . . 16 11 Kinetic 168 | 40 51 77 . Thermal 168 | . 142 26 . Explosive . | . . . . Electromagnetic 167 | 39 53 75 . Impact . | . . . . Slashing . | . . . . Piercing . | . . . . Highest Corruption . | . . . . Average Corruption . | . . . . Corruption Purged . | . . . . Overload Shots . | . . . . Overflow Damage . | . . . . Projectiles . | . . . . Explosions . | . . . . Melee . | . . . . Knockbacks 1 | . . 1 . Impact . | . . . . Kinetic 1 | . . 1 . Secondary . | . . . . Self-Inflicted Damage 91 | . 43 45 3 Shots 3 | . 2 1 . Rammed 10 | . . 4 6 Targets Rammed 10 | . . 4 6 Kicked . | . . . . Crushed . | . . . . Highest Temperature 81 | . 30 81 . Average Temperature 16 | . 17 16 . Received Heat Transfer 153 | . 42 93 18 Siege Activations . | . . . . Robots Corrupted . | . . . . Combat Hostiles . | . . . . Parts Fried . | . . . . Impact Corruptions . | . . . . Robots Melted . | . . . . Combat Hostiles . | . . . . Parts Melted . | . . . . Heat Transferred 200 | . 150 50 . Parts Sabotaged . | . . . . Parts Stolen . | . . . . Parts Stripped . | . . . . Power Chain Reactions 3 | . 2 1 . Missiles Intercepted . | . . . . Alert | -11 -10 -9 -9 ------- Run | Scr Mat Mat Min Peak Influence 162 | 5 162 148 43 Initial 68 | . 3 68 43 Average 73 | 1 95 96 43 Maximum Alert Level . | . . . . Low Security (%) 100 | 100 100 100 100 Level 1 . | . . . . Level 2 . | . . . . Level 3 . | . . . . Level 4 . | . . . . Level 5 . | . . . . High Security . | . . . . Max Security . | . . . . Squads Dispatched 2 | . 1 1 . Investigation . | . . . . Extermination . | . . . . Reinforcement 2 | . 1 1 . Assault . | . . . . Garrison . | . . . . Intercept . | . . . . Construction Impeded . | . . . . Haulers Reinforced . | . . . . Stealth | -11 -10 -9 -9 --------- Run | Scr Mat Mat Min Distress Signals 1 | . . 1 . Communications Jammed . | . . . . Distress Signals . | . . . . Times Spotted 28 | . 7 15 6 Peak Tracking Total 10 | . 4 10 6 Tactical Retreats . | . . . . Traps | -11 -10 -9 -9 ------- Run | Scr Mat Mat Min Traps Triggered . | . . . . Indirectly . | . . . . Trap Hack Attempts . | . . . . Triggered . | . . . . Disarmed . | . . . . Reprogrammed . | . . . . Reused . | . . . . Traps Extracted . | . . . . Installed . | . . . . Triggered . | . . . . Machines | -11 -10 -9 -9 ---------- Run | Scr Mat Mat Min Machines Disabled 2 | . 2 . . Max in Single Turn 1 | . 1 . . Machines Sabotaged . | . . . . Garrisons Compromised . | . . . . Overloaded Fab Kills . | . . . . Fab Network Shutdowns . | . . . . Hacking | -11 -10 -9 -9 --------- Run | Scr Mat Mat Min Machines Accessed 1 | . 1 . . Terminals 1 | . 1 . . Fabricators . | . . . . Repair Stations . | . . . . Recycling Units . | . . . . Scanalyzers . | . . . . Garrison Access . | . . . . Total Hacks 2 | . 2 . . Successful 1 | . 1 . . Failed 1 | . 1 . . Catastrophic . | . . . . Database Lockouts . | . . . . Manual 2 | . 2 . . Terminals 2 | . 2 . . Fabricators . | . . . . Repair Stations . | . . . . Recycling Units . | . . . . Scanalyzers . | . . . . Garrison Access . | . . . . Terminal Hacks 1 | . 1 . . Level Access Points 1 | . 1 . . Fabricator Hacks . | . . . . Repair Station Hacks . | . . . . Recycling Unit Hacks . | . . . . Scanalyzer . | . . . . Garrison Access Hacks . | . . . . Unauthorized Hacks . | . . . . Terminals . | . . . . Fabricators . | . . . . Repair Stations . | . . . . Recycling Units . | . . . . Scanalyzers . | . . . . Garrison Access . | . . . . Data Cores Recovered . | . . . . Used . | . . . . Hacking Detections 1 | . 1 . . Full Trace Events . | . . . . Feedback Events . | . . . . Feedback Blocked . | . . . . Robot Schematics Acquired . | . . . . Robots Built . | . . . . Matter . | . . . . Time . | . . . . Total Robot Build Rating . | . . . . Part Schematics Acquired . | . . . . Parts Built . | . . . . Matter . | . . . . Time . | . . . . Total Part Build Rating . | . . . . Parts Repaired . | . . . . Time . | . . . . Parts Recycled . | . . . . Recycled Matter . | . . . . Retrieved Matter . | . . . . Retrieved Components . | . . . . Parts Scanalyzed . | . . . . Part Schematics Acquired . | . . . . Parts Damaged . | . . . . Bothacking | -11 -10 -9 -9 ------------ Run | Scr Mat Mat Min Used RIF Installer . | . . . . Robots Hacked . | . . . . Non-combat . | . . . . Combat . | . . . . Robot Hacks Applied . | . . . . Relay Couplers Released . | . . . . Robots Rewired . | . . . . Allies Hacked . | . . . . Hacks Repelled . | . . . . Allies | -11 -10 -9 -9 -------- Run | Scr Mat Mat Min Total Allies . | . . . . Largest Group . | . . . . Highest-Rated Group . | . . . . Highest-Rated Ally . | . . . . Total Orders . | . . . . Ally Attacks . | . . . . Total Damage . | . . . . Kills . | . . . . Allies Corrupted . | . . . . Allies Melted . | . . . . Intel | -11 -10 -9 -9 ------- Run | Scr Mat Mat Min Robot Analysis Total . | . . . . Derelict Logs Recovered 1 | . . . 1 Drone Launches . | . . . . Drone Recoveries . | . . . . Exploration | -11 -10 -9 -9 ------------- Run | Scr Mat Mat Min Turns Passed 503 | 80 232 117 74 Spaces Moved 417 | 51 157 73 136 Core 168 | 5 . 27 136 Treads . | . . . . Legs 249 | 46 157 46 . Wheels . | . . . . Hover . | . . . . Flight . | . . . . Fastest Speed 50 | 50 120 50 50 Average Speed 91 | 113 120 94 50 Slowest Speed 120 | 120 120 120 50 Overloaded Moves . | . . . . Propulsion Burnouts . | . . . . Robots Hopped . | . . . . Cave-ins Triggered . | . . . . Exploration Rate (%) 19 | 3 32 19 24 Regions Visited 3 Branch Regions 1 Pre-discovered Areas 1 | . . . 1 Known Exits Taken 1 | . 1 . . Unknown Exits Taken 2 | 1 . 1 . Scrap Searched . | . . . . Spaces Dug . | . . . . Terrain Destroyed 9 | . 4 5 . Melee . | . . . . Projectile . | . . . . AOE 9 | . 4 5 . Terrain Rammed . | . . . . Walls Destroyed . | . . . . Machines Disabled . | . . . . Actions | -11 -10 -9 -9 --------- Run | Scr Mat Mat Min Total 486 | 62 188 94 142 Wait 12 | . 12 . . Move 414 | 50 156 72 136 Hop . | . . . . Pick Up 7 | 2 5 . . Fast Attach 8 | 6 2 . . Attach 5 | . . 5 . Detach . | . . . . Swap 2 | . 2 . . Drop 3 | . 3 . . Fire 25 | 4 8 13 . Melee . | . . . . Ram 9 | . . 3 6 Kick 1 | . . 1 . Crush . | . . . . Escape Stasis . | . . . . Rewire . | . . . . Trap . | . . . . Miscellaneous . | . . . . Route ------- -11/Scrapyard -10/Materials (discovered 3 exits: *Mat x3) -9/Materials -9/Mines History --------- Turn | Location | Event 24 | -11/Scrapyard | Discovered new exit (range 16) 81 | -11/Scrapyard | Entered Materials 125 | -10/Materials | Identified exit to Materials 313 | -10/Materials | Entered another Materials area 313 | -9/Materials | Evolved 2 slots: Propulsion x1, Utility x1 335 | -9/Materials | Build established: Mutant 414 | -9/Materials | Released all parts (5) 417 | -9/Materials | Core integrity fell below 50% 422 | -9/Materials | Discovered new exit (range 15) 430 | -9/Materials | Entered Mines 444 | -9/Mines | Lost 7 parts (1p2n1u3w) 496 | -9/Mines | Core integrity fell below 20% 499 | -9/Mines | Learned location of Storage (-7) 504 | -9/Mines | Destroyed by S-10 Pest with Light Assault Rifle Last Messages --------------- 00414_ Released Lgt. Ion Engine. 00414_ Released Imp. Light Cannon. 00414_ Slammed into S-10 Pest. 00414_ U-05 Engineer lays Concrete. 00415_ K-01 Serf collects debris. 00415_ Slammed into S-10 Pest. 00415_ U-05 Engineer lays Concrete. 00416_ Slammed into S-10 Pest. 00416_ S-10 Pest destroyed. 00422_ EXIT=FOUND 00423_ W-16 Scout sends out distress signal. 00425_ S-10 Pest destroyed. LOCATION=UNKNOWN GOAL=ESCAPE 00455_ T-07 Excavator is excavating. 00496_ Slammed into L-31 Rogue. 00498_ Slammed into G-34 Mercenary. 00499_ Acquired derelict log, extracted data. World map updated: -7/Storage. 00499_ Slammed into G-34 Mercenary. Map ----- +----------------------------------------------------+ | ?????????????????????????????????????????????????? | | ?????????????????????????????????????????????????? | | ?????????????????????????????????????????????????? | | ?????????????????????????????????????????????????? | | ?????????????????????????????????????????????????? | | ?????????????????????????????????????????????????? | | ?????????????????????????????????????????????????? | | ?????????????????????????????????????????????????? | | ?????????????????????????????????????????????????? | | ?????????????????????????????????????????????????? | | ?????????????????????????????????????????????????? | | ?????????????????????????????????????????????????? | | ?????????????????? ?????????????????????????????? | | ???????????????? ?????????????????????????????? | | ??????????????k ????????????????????????????? | | ???????????????k #???????????????????????????? | | ???????????????# ???????????????????????????? | | ??????????????## ??????????????????????????? | | ?????????????## ??????????????????????????? | | ?????????????# #?????????????????????????? | | ?????????????# #????????????????????????? | | ????????????## ##??????????????????????? | | ????????????# #??????????????????????? | | ????????????# #??????????????????????? | | ?????????????# ##?????????????????????? | | ??????????????# @ ##????????????????????? | | ??????????????# #??????#?????????????? | | ??????????????## #????? ###???????????? | | ???????????????### ss #??? ###?????????? | | ?????????????????## l ### #?????????? | | ??????????????????# sg #????????? | | ??????????????????## ###g $ #????????? | | ???????????????????# #??#%### #?????????? | | ???????????????????# ???#%#??# ####?????????? | | ???????????????????# ????#%#???# ##????????????? | | ???????????????????# ????#%#????####???###### | | ???????????????????#?????#%#???????????# | | ?????????????????????????# ##########??# #### """ | | ?????????????????????????# #### #???????? | | ?????????????????????????########## #???????? | | ??????????????????????????????????# #### #???????? | | ??????????????????????????????????# #??# #???????? | | ??????????????????????????????????# #?## ##??????? | | ??????????????????????????????????# #?# ##?????? | | ??????????????????????????????????# #?# ## #? | | ??????????????????????????????????# #?## #??? | | ??????????????????????????????????# #??# # ##??? | | ??????????????????????????????????# #??# ####???? | | ??????????????????????????????????# #??# #??????? | | ????????????????????????????#####?# #??# #?????## | +----------------------------------------------------+ Best States ------------- Heat Dissipation 28 Energy Generation 10 Energy Capacity 250 Matter Stores 436 Matter Capacity 450 Sight Range 16 Terrain Scan Density 10 Armor Coverage 150 Evasion (%) 50 Item Schematics ----------------- None Robot Schematics ------------------ None Fabricated ------------ Nothing Alien Tech Used ----------------- None Achievements -------------- None Challenges ------------ None Game ------ Seed ContainmentCoolingSystem Manual? 0 Play Time 00:04:34 Cumulative 80.3 hours Start 2021.08.30 @ 10:54:53 End 2021.08.30 @ 10:58:54 Sessions 1 Manual Loads 0 Difficulty Rogue Special Mode None Game No. 120 Rogue 108 Adventurer 10 Explorer 2 Win Type - Total 0 Types 0/0/0/0/0/0/0/0/0 Lore% 23 Gallery% 56 Achievement% 37 Wizard Run 0 Options --------- ASCII 0 Keyboard 0 Movement Arrows Keybinds 0 Fullscreen 1 Font 36/CogNarrow Map View 76x50 Tactical HUD 1 Map Filters NONE Filters NONE Steam 1 RUN: fa0f0fbd-cd95-4723-bbe9-760b9022c632